[Event "German Bundesliga 2023-24"]
[Site "Germany"]
[Date "2024.03.16"]
[Round "12.3"]
[White "Andersen, Mads"]
[Black "Dragnev, Valentin"]
[Result "1-0"]
[ECO "C77"]
[WhiteElo "2606"]
[BlackElo "2586"]
[Annotator "TA"]
[PlyCount "85"]
[EventDate "2023.10.20"]
[EventType "team-tourn"]
[EventCountry "GER"]
[SourceTitle "playchess.com"]
[Source "ChessBase"]
[SourceQuality "1"]
[TimeControl "40/6000+30:3000+30"]

{[%evp 11,85,14,12,1,11,0,14,0,0,0,4,2,21,8,13,12,56,20,10,20,14,13,23,23,113,112,226,225,227,203,226,177,178,175,184,201,197,136,201,204,200,198,197,215,293,293,300,290,286,291,284,283,299,174,182,178,176,178,188,194,190,193,249,246,240,210,211,183,209,0,205,208,210,209,221,185]} 1. e4 {[%emt 0:00:06]} e5 {[%emt 0:00:05]} 2. Nf3 {[%emt 0:00:10]} Nc6 {[%emt 0:00:04]} 3. Bb5 {[%emt 0:00:16]} a6 {[%emt 0:00:08]} 4. Ba4 {[%emt 0:00:07]} Nf6 {[%emt 0:00:04]} 5. d3 {[%emt 0:00:18]} Bc5 {[%emt 0:02:02]} 6. Bxc6 {[%emt 0:01:34]} dxc6 {[%emt 0:00:08]} 7. Nbd2 {[%emt 0:00:38][%cal Oe1g1]} (7. Nxe5 $2 Qd4 8. Qe2 Qxe5 $19) 7... Be6 {[%emt 0:11:08]} 8. O-O {[%emt 0:01:58]} (8. Nxe5 $2 Qd4 9. Rf1 Qxe5 $19) 8... Qd6 {[%emt 0:11:04]} 9. Qe1 {[%emt 0:21:11] The position is equal.} Nd7 {[%emt 0:19:29]} 10. Nb3 {[%emt 0:11:00]} Bg4 {[%emt 0:03:07]} 11. Nfd2 {[%emt 0:03:44]} Qg6 {[%emt 0:03:32]} 12. Kh1 $1 {[%emt 0:01:51]} Be7 {[%emt 0:00:20]} 13. Nc4 {[%emt 0:03:46]} Qh5 {[%emt 0:18:33]} 14. f4 {[%emt 0:10:57]} Bh4 {[%emt 0:03:00]} 15. Qe3 {[%emt 0:05:37]} exf4 {[%emt 0:07:01]} 16. Qxf4 {[%emt 0:00:54]} O-O-O {[%emt 0:06:37][%cal Of7f5]} 17. Nd4 {[%emt 0:14:13]} (17. Qxf7 $2 Rdf8 $19) 17... Nc5 {[%emt 0:04:12]} (17... Be6 $11) 18. Ne5 $1 $16 {[%emt 0:08:01] White is more active. A dynamic duo of knights.} Ne6 {[%emt 0:03:29]} (18... Bf6 $16 {is a better defense.} 19. Qxg4+ Qxg4 20. Nxg4 Bxd4 21. Rxf7 h5) 19. Nxe6 $18 {[%emt 0:04:48]} (19. Qxg4 Qxg4 20. Ndf3 (20. Nxg4 Nxd4 21. g3 f5 $11) 20... h5 (20... Qh5 21. g4 $14) 21. Nxg4 hxg4 $11) 19... Bxe6 {[%emt 0:00:11] [#]} 20. g4 $1 {[%emt 0:01:02]} (20. Nxf7 $2 Rhf8 21. Qe3 Rxf7 $19) 20... Qh6 {[%emt 0:03:28]} 21. Qxh6 $40 {[%emt 0:05:05][%mdl 128] White wants a kill.} (21. Nxf7 Qxf4 22. Rxf4 Bxf7 23. Rxf7 Bf6) 21... gxh6 {[%emt 0:00:02]} 22. Bxh6 {[%emt 0:00:31][%cal Og4g5] Strongly threatening g5!} (22. Nxf7 $2 Rhf8 23. b3 Rxf7 $19 (23... Bxf7 24. Bxh6 Be7 25. Bxf8 $14)) 22... Rhg8 {[%emt 0:02:34][%cal Bh8g8,Bg8g6,Bg6g3][%mdl 32]} 23. Nxf7 {[%emt 0:06:40]} Rde8 {[%emt 0:00:23]} 24. Ne5 {[%emt 0:01:57]} (24. g5 $18) 24... Be7 {[%emt 0:00:42]} (24... Bg5 $16 {might work better.} 25. Nf7 (25. Bxg5 Rxg5 26. Nf3 Rb5 $16) 25... Bxh6 26. Nxh6 Rg6) 25. h3 {[%emt 0:01:47][%cal Bh2h3,Bh3h4][%mdl 32]} Bd6 {[%emt 0:01:32]} 26. Nf3 {[%emt 0:01:18]} Rg6 {[%emt 0:00:27]} 27. Bd2 {[%emt 0:01:24][%cal Bh6d2,Bd2e1,Be1g3][%mdl 32]} h5 {[%emt 0:00:12]} 28. gxh5 {[%emt 0:01:16]} Rg3 {[%emt 0:07:38] [#]} 29. Ng5 {[%emt 0:00:03] aiming for Rg1.} ({Not} 29. h4 Rh3+ 30. Kg2 Rg3+ 31. Kh1 (31. Kf2 $2 Rf8 $19) 31... Rh3+ 32. Kg2 Rg3+ 33. Kh1 $11 (33. Kf2 $2 Rf8 $19)) 29... Rg8 {[%emt 0:00:40]} 30. h4 {[%emt 0:01:29]} (30. Nxe6 $2 Rxh3#) 30... Rg4 {[%emt 0:02:58]} 31. Be1 {[%emt 0:00:16]} (31. Nxe6 $2 Rxh4#) 31... Bd7 {[%emt 0:00:29]} 32. Rg1 {[%emt 0:00:59]} (32. h6 $142 Rh8 33. Nf7) 32... Rh8 {[%emt 0:00:35]} 33. Rxg4 {[%emt 0:00:25]} Bxg4 {[%emt 0:00:01]} 34. Kg2 {[%emt 0:00:49]} Rxh5 {[%emt 0:01:01]} 35. Bg3 {[%emt 0:00:19] Black must now prevent Bxd6.} Be7 {[%emt 0:00:11]} 36. Bf4 {[%emt 0:00:53]} Bd7 {[%emt 0:00:50]} (36... Rh8 $142 37. b3 Bd7) 37. Kg3 {[%emt 0:00:16]} Rh8 {[%emt 0:00:23]} 38. Rf1 {[%emt 0:00:33]} Rg8 {[%emt 0:00:17]} 39. Be3 {[%emt 0:00:32]} Bd6+ {[%emt 0:00:08]} 40. Bf4 {[%emt 0:00:26] Bxd6 would now be deadly.} Be7 {[%emt 0:00:23]} 41. d4 {[%emt 0:11:09] White is clearly better.} b5 {[%emt 0:03:53]} 42. b3 {[%emt 0:03:58]} a5 {[%emt 0:00:25]} 43. Bd2 {[%emt 0:03:27] Weighted Error Value: White=0.17 (very precise) /Black=0.18 (very precise) .  Mistake:       	White=2     	Black=4      Inaccurate:     	White=1     	Black=2      OK:         	White=16    	Black=17     Best:        	White=1     	---        Strong:       	White=3     	---} 1-0

[Event "German Bundesliga 2023-24"]
[Site "Germany"]
[Date "2024.03.16"]
[Round "12.3"]
[White "Burg, Twan"]
[Black "Engel, Luis"]
[Result "0-1"]
[ECO "B52"]
[WhiteElo "2530"]
[BlackElo "2547"]
[Annotator "TA"]
[PlyCount "96"]
[EventDate "2023.10.20"]
[EventType "team-tourn"]
[EventCountry "GER"]
[SourceTitle "playchess.com"]
[Source "ChessBase"]
[SourceQuality "1"]
[TimeControl "40/6000+30:3000+30"]

{[%evp 21,96,16,21,0,23,0,0,-7,0,-12,-24,-20,21,16,13,20,8,13,13,11,13,18,17,22,10,16,16,14,17,0,0,0,0,0,0,0,-4,-11,-12,-18,-9,-8,-25,-8,-8,-50,-47,-142,-126,-151,-135,-155,-158,-157,-153,-239,-235,-262,-249,-254,-242,-204,-191,-302,-201,-200,-208,-210,-210,-210,-195,-204,-186,-29982,-29983,-29983,-29984]} 1. e4 {[%emt 16:30:14]} c5 {[%emt 0:00:04]} 2. Nf3 {[%emt 0:00:07]} d6 {[%emt 0:00:04]} 3. Bb5+ {[%emt 0:00:11]} Bd7 {[%emt 0:00:05]} 4. Bxd7+ {[%emt 0:00:10]} Qxd7 {[%emt 0:00:06]} 5. c4 {[%emt 0:00:22]} Nc6 {[%emt 0:00:05]} 6. d4 {[%emt 0:01:25]} cxd4 {[%emt 0:00:06]} 7. Nxd4 {[%emt 0:00:25]} g6 {[%emt 0:00:07]} 8. Nc3 {[%emt 0:00:49]} Bg7 {[%emt 0:00:06]} 9. Be3 {[%emt 0:00:05]} Nf6 {[%emt 0:00:06]} 10. f3 {[%emt 0:00:07]} O-O {[%emt 0:00:07]} 11. O-O {[%emt 0:00:03]} a6 {[%emt 0:00:11]} 12. a4 {[%emt 0:04:59]} e6 {[%emt 0:01:29]} 13. Rc1 {[%emt 0:08:37]} Rfd8 {[%emt 0:13:13]} 14. Nde2 {[%emt 0:03:53] Die Stellung ist ausgeglichen.} d5 {[%emt 0:16:42]} 15. cxd5 {[%emt 0:04:35]} exd5 {[%emt 0:00:06]} 16. Bb6 {[%emt 0:00:39] Nxd5 ist eine echte Drohung.} Re8 {[%emt 0:00:10]} (16... d4 {mit weiteren Verwicklungen.} 17. Bxd8 Rxd8 18. Nd5 Nxd5 19. exd5 Qxd5 20. Nf4 Qf5) 17. Nxd5 {[%emt 0:18:03]} Nxd5 {[%emt 0:00:08]} 18. Qxd5 {[%emt 0:07:00]} Qxd5 {[%emt 0:00:13]} 19. exd5 {[%emt 0:00:04]} Rxe2 {[%emt 0:01:55]} 20. dxc6 {[%emt 0:00:27]} bxc6 {[%emt 0:00:05]} 21. Rf2 {[%emt 0:02:08]} Rxb2 {[%emt 0:08:44]} 22. Rxb2 {[%emt 0:01:55]} (22. Rxc6 $2 {zu gefräßig.} Rb1+ 23. Rf1 Rxb6 24. Rxb6 Bd4+ 25. Kh1 Bxb6 $19) 22... Bxb2 {[%emt 0:00:06]} 23. Rxc6 $11 {[%emt 0:00:12][%mdl 4096] Endspiel. KRB-KRB} Kf8 {[%emt 0:06:21]} 24. Kf2 {[%emt 0:03:31]} Ke8 {[%emt 0:03:47]} 25. Ke3 {[%emt 0:02:10]} Be5 {[%emt 0:01:09]} 26. h3 {[%emt 0:09:00]} Kd7 {[%emt 0:04:32]} 27. Rc4 {[%emt 0:00:52]} Rb8 {[%emt 0:00:20]} 28. a5 {[%emt 0:00:33]} Re8 {[%emt 0:01:47]} 29. f4 {[%emt 0:16:27]} Bd6+ {[%emt 0:01:11]} 30. Kf3 {[%emt 0:01:18]} f5 {[%emt 0:03:39]} 31. Rd4 {[%emt 0:05:44]} Rc8 {[%emt 0:01:24]} 32. Rd3 {[%emt 0:01:28] Verhindert Rc3} Rc4 {[%emt 0:05:51]} 33. Be3 {[%emt 0:00:51]} Kc6 {[%emt 0:00:51]} 34. g4 {[%emt 0:00:07] Schwarz führt seinen Vorteil zum Gewinn.} (34. Rb3 $15) 34... Ra4 $17 {[%emt 0:07:15]} 35. Rc3+ {[%emt 0:00:12]} Kd5 $1 {[%emt 0:03:16]} 36. Rd3+ {[%emt 0:00:53]} Ke6 $1 {[%emt 0:00:28]} 37. gxf5+ {[%emt 0:03:29]} gxf5 {[%emt 0:00:06]} 38. Rc3 {[%emt 0:01:15]} (38. Bd2 $17 {ist eine bessere Verteidigung.}) 38... Rxa5 $19 {[%emt 0:04:14]} 39. Rc8 {[%emt 0:00:13]} Ra3 $1 {[%emt 0:01:12]} 40. Ke2 {[%emt 0:00:17]} a5 {[%emt 0:03:13]} 41. h4 {[%emt 0:06:03]} h5 {[%emt 0:04:31]} 42. Bd2 {[%emt 0:02:50]} (42. Rh8 $142) 42... Ra2 {[%emt 0:06:58]} 43. Kd3 {[%emt 0:01:04]} a4 {[%emt 0:00:37]} 44. Ra8 {[%emt 0:03:01]} a3 $1 {[%emt 0:01:25]} 45. Ra6 {[%emt 0:01:31] Bb4 wäre nun fies.} Kd5 {[%emt 0:07:04]} 46. Ra5+ {[%emt 0:00:54] [#]} Kc6 $1 {[%emt 0:00:06][%cal Oa2d2] Und jetzt ...Rxd2+! wäre schön.} 47. Rxf5 $2 {[%emt 0:00:35] [#]} (47. Ra6+ $19 Kc7 (47... Kd5 48. Ra5+ Kc6 49. Bc3 $17) 48. Ba5+ Kd7 49. Bc3) 47... Rxd2+ $1 {[%emt 0:00:26][%mdl 512]} 48. Kxd2 {[%emt 0:00:07]} a2 {[%emt 0:00:05] Gewichteter Fehlerwert: Weiß=0.33/Schwarz=0.05 (makellos) .  Fehler:       	Weiß=4     	---        Ungenau:       	Weiß=1     	Schwarz=2     OK:         	Weiß=13    	Schwarz=16    Bester:       	Weiß=1     	Schwarz=2     Stark:        	---       	Schwarz=4     Brilliant:      	---       	Schwarz=1} 0-1

[Event "German Bundesliga 2023-24"]
[Site "Germany"]
[Date "2024.03.16"]
[Round "12.4"]
[White "Michalik, Peter"]
[Black "Korobov, Anton"]
[Result "1/2-1/2"]
[ECO "D43"]
[WhiteElo "2576"]
[BlackElo "2658"]
[Annotator "TA"]
[PlyCount "62"]
[EventDate "2023.10.20"]
[EventType "team-tourn"]
[EventCountry "GER"]
[SourceTitle "playchess.com"]
[Source "ChessBase"]
[SourceQuality "1"]
[TimeControl "40/6000+30:3000+30"]

{[%evp 24,62,16,23,31,35,32,-31,11,-55,-46,-45,-47,-77,-58,-70,-35,-36,-36,-34,-26,-22,-15,-20,-10,-8,-7,-6,-6,-9,-11,-12,0,0,0,0,0,-5,0,-2,-2]} 1. d4 {[%emt 0:00:03]} d5 {[%emt 0:00:12]} 2. c4 {[%emt 0:00:07]} c6 {[%emt 0:00:04]} 3. Nf3 {[%emt 0:00:08]} Nf6 {[%emt 0:00:07]} 4. Nc3 {[%emt 0:00:06]} e6 {[%emt 0:00:24]} 5. Bg5 {[%emt 0:00:25]} h6 {[%emt 0:00:07]} 6. Bxf6 {[%emt 0:00:05]} Qxf6 {[%emt 0:00:07]} 7. e3 {[%emt 0:00:08]} Nd7 {[%emt 0:00:17]} 8. Bd3 {[%emt 0:01:15]} g6 {[%emt 0:00:07]} 9. O-O {[%emt 0:00:40]} dxc4 {[%emt 0:01:37]} 10. Bxc4 {[%emt 0:00:06]} Bg7 {[%emt 0:00:06]} 11. e4 {[%emt 0:00:22]} e5 {[%emt 0:00:05]} 12. d5 {[%emt 0:00:28]} Nb6 {[%emt 0:00:06]} 13. Bb3 {[%emt 0:00:21]} O-O {[%emt 0:00:05]} 14. Nd2 {[%emt 0:04:30]} h5 {[%emt 0:01:24]} 15. Nc4 {[%emt 0:02:24]} (15. h3 $14) 15... Rd8 {[%emt 0:09:21] Black is slightly better.} 16. Qf3 {[%emt 0:01:59]} (16. Ne3 $11) 16... Qxf3 $15 {[%emt 0:04:05]} 17. gxf3 {[%emt 0:01:29]} Bh3 {[%emt 0:05:11]} ({Of course not} 17... cxd5 $6 18. Nxb6 axb6 19. Nxd5 $14) 18. Rfd1 {[%emt 0:00:32]} Nxc4 {[%emt 0:00:45]} 19. Bxc4 {[%emt 0:00:08]} Bf8 {[%emt 0:00:20]} 20. Rd3 {[%emt 0:07:38][%cal Of3f4]} b5 {[%emt 0:09:21]} 21. Bb3 {[%emt 0:00:10][%cal Of3f4]} b4 {[%emt 0:00:05]} 22. Nd1 {[%emt 0:04:47][%cal Of3f4]} cxd5 {[%emt 0:01:08] The position is equal.} 23. Bxd5 {[%emt 0:00:17][%cal Of3f4]} Rac8 {[%emt 0:00:30]} 24. f4 $1 {[%emt 0:03:05]} Be6 {[%emt 0:03:26]} 25. fxe5 {[%emt 0:00:27]} Bg7 {[%emt 0:00:50][%cal Bf8g7,Bg7e5,Be5f4][%mdl 32]} 26. a3 {[%emt 0:03:52]} Bxd5 {[%emt 0:09:47]} (26... Bxe5 27. axb4 Rb8 28. Ra4) 27. exd5 {[%emt 0:01:02]} Bxe5 {[%emt 0:01:26]} 28. axb4 {[%emt 0:00:11]} Rc4 {[%emt 0:00:04]} 29. Rxa7 {[%emt 0:03:06]} Rxb4 {[%emt 0:02:16]} 30. b3 {[%emt 0:06:41]} Rb5 {[%emt 0:04:46]} 31. Ne3 {[%emt 0:03:16]} Bf4 {[%emt 0:00:16] Weighted Error Value: White=0.17 (very precise) /Black=0.06 (flawless) .  Mistake:       	White=2     	---        Inaccurate:     	White=1     	Black=2      OK:         	White=5     	Black=9      Best:        	White=2     	Black=1      Strong:       	White=1     	---} 1/2-1/2

[Event "German Bundesliga 2023-24"]
[Site "Germany"]
[Date "2024.03.16"]
[Round "12.4"]
[White "Bogner, Sebastian"]
[Black "Van Wely, Loek"]
[Result "1-0"]
[ECO "D16"]
[WhiteElo "2536"]
[BlackElo "2626"]
[Annotator "TA"]
[PlyCount "97"]
[EventDate "2023.10.20"]
[EventType "team-tourn"]
[EventCountry "GER"]
[SourceTitle "playchess.com"]
[Source "ChessBase"]
[SourceQuality "1"]
[TimeControl "40/6000+30:3000+30"]

{[%evp 16,97,28,24,18,0,6,13,5,6,37,23,110,100,110,122,116,116,144,151,150,148,139,139,180,172,181,171,187,174,177,195,174,188,176,161,170,123,189,151,174,171,173,99,99,94,92,98,102,96,102,103,108,110,114,115,172,174,170,177,175,170,242,242,242,242,242,242,242,179,1338,487,2054,1806,2269,3247,5502,1641,4866,4734,8620,5576,5539,5535]} 1. d4 {[%emt 0:00:03]} d5 {[%emt 0:00:08]} 2. c4 {[%emt 0:00:13]} c6 {[%emt 0:00:05]} 3. Nf3 {[%emt 0:00:14]} Nf6 {[%emt 0:00:06]} 4. Nc3 {[%emt 0:00:22]} dxc4 {[%emt 0:00:20]} 5. a4 {[%emt 0:00:09]} e6 {[%emt 0:00:04]} 6. e3 {[%emt 0:04:25]} c5 {[%emt 0:01:44]} 7. Bxc4 {[%emt 0:00:12]} Nc6 {[%emt 0:00:42]} 8. O-O {[%emt 0:00:17]} cxd4 {[%emt 0:05:17]} 9. exd4 {[%emt 0:00:18]} Be7 {[%emt 0:00:08]} 10. Bg5 {[%emt 0:01:36]} O-O {[%emt 0:00:58]} 11. Qd2 {[%emt 0:02:03]} Nb4 {[%emt 0:09:44] The position is equal.} 12. Ne5 {[%emt 0:30:27]} Bd7 {[%emt 0:16:11]} 13. Bxf6 {[%emt 0:19:57]} gxf6 {[%emt 0:12:45]} (13... Bxf6 $11 {keeps the balance.} 14. Ne4 Bxe5) 14. Nxd7 $16 {[%emt 0:06:30]} Qxd7 {[%emt 0:00:16]} 15. Rad1 {[%emt 0:08:06]} Qc7 {[%emt 0:18:32]} 16. Qe2 {[%emt 0:07:28]} Rac8 {[%emt 0:03:25]} 17. Bb3 {[%emt 0:05:14]} Rfd8 {[%emt 0:01:30]} 18. d5 {[%emt 0:02:36]} exd5 {[%emt 0:03:27]} 19. Rfe1 {[%emt 0:07:03]} Bc5 {[%emt 0:06:37]} 20. Qg4+ {[%emt 0:02:43]} Kh8 {[%emt 0:01:32]} 21. Qf5 {[%emt 0:00:07][%cal Rb3d5]} Bf8 {[%emt 0:10:24]} 22. Nxd5 {[%emt 0:04:18]} (22. Qxf6+ Bg7 23. Qf5 Qd7) (22. Bxd5 Nxd5 23. Nxd5 Qc2 24. Qxf6+ Bg7 $16) 22... Nxd5 {[%emt 0:00:44]} 23. Bxd5 {[%emt 0:00:11][%cal Od5e4] Intending Be4! and mate.} (23. Rxd5 Rxd5 24. Qxd5 (24. Bxd5 Qe5 $14) 24... Bd6) 23... Bg7 {[%emt 0:02:24] Black is weak on the light squares} 24. Be4 {[%emt 0:00:36]} Kg8 {[%emt 0:00:04]} 25. Qxh7+ {[%emt 0:00:38]} Kf8 {[%emt 0:00:02]} 26. Qf5 {[%emt 0:05:43]} ({White should play} 26. g3 $18) 26... b6 {[%emt 0:07:06]} (26... Qe5 $16 27. g3 Qxb2 28. Rxd8+ Rxd8) 27. Qf3 {[%emt 0:00:42]} Rxd1 {[%emt 0:01:41]} 28. Rxd1 {[%emt 0:00:06]} Rd8 {[%emt 0:03:36]} 29. Bd5 {[%emt 0:01:13]} (29. Rxd8+ $18 Qxd8 30. b3) 29... Qe5 {[%emt 0:01:51]} 30. b3 {[%emt 0:00:41]} f5 {[%emt 0:01:02]} 31. g3 {[%emt 0:00:07]} Bf6 {[%emt 0:01:28][%cal Bg7f6,Bf6e7,Be7c5,Bc5d6][%mdl 32]} 32. Kg2 {[%emt 0:00:45]} Be7 {[%emt 0:00:29]} 33. Rd3 {[%emt 0:00:24]} Bc5 {[%emt 0:00:55]} 34. h4 $40 {[%emt 0:00:31][%mdl 128] White is out for blood.} Rd6 {[%emt 0:00:55]} 35. Bc4 {[%emt 0:00:59] Black must now prevent Qh5.} Qe4 {[%emt 0:01:10]} (35... Rxd3 $16 36. Bxd3 f4) 36. Qxe4 $18 {[%emt 0:00:53]} fxe4 {[%emt 0:00:02]} 37. Rxd6 {[%emt 0:00:15]} Bxd6 {[%emt 0:00:01][%mdl 4096] Endgame. KB-KB} 38. Bd5 $1 {[%emt 0:00:46]} f5 {[%emt 0:00:19] [#]} (38... e3 {was called for.} 39. f4 (39. fxe3 Kg7 $18) 39... Bb4) 39. Be6 $1 {[%emt 0:00:32]} f4 {[%emt 0:00:20] [#]} 40. g4 $1 {[%emt 0:00:21][%cal Bg3g4,Bg4g5][%mdl 32]} f3+ {[%emt 0:01:22]} 41. Kh3 {[%emt 0:03:34]} Ke7 {[%emt 0:35:03] aiming for ...e3.} 42. Bd5 {[%emt 0:00:44]} e3 $2 {[%emt 0:00:37]} (42... Kf6 43. Bxe4 Ke5) 43. fxe3 {[%emt 0:00:25] White is clearly winning.} ({Not} 43. Bxf3 exf2 44. Be2 (44. Kg2 Bg3 $16) 44... Ke6 $16) 43... f2 {[%emt 0:00:09]} (43... a6 $142 44. Bxf3 Kf7) 44. Bc4 {[%emt 0:00:26]} Bc5 {[%emt 0:01:07]} 45. g5 {[%emt 0:07:29]} (45. Kg2 Bxe3 46. Kf3 Bc5) 45... Kd6 {[%emt 0:00:36]} 46. Kg4 {[%emt 0:01:58] Threatens to win with h5.} Bxe3 {[%emt 0:01:07]} 47. h5 {[%emt 0:00:35][%cal Bh4h5,Bh5h6][%mdl 32]} a5 {[%emt 0:03:11]} 48. h6 {[%emt 0:00:34]} Ke7 {[%emt 0:01:13]} 49. Kh5 {[%emt 0:00:09] Weighted Error Value: White=0.09 (flawless) /Black=0.18 (very precise) .  Mistake:       	White=2     	Black=6      Inaccurate:     	---       	Black=1      OK:         	White=17    	Black=10     Best:        	White=2     	Black=2      Strong:       	White=3     	---} 1-0

[Event "German Bundesliga 2023-24"]
[Site "Germany"]
[Date "2024.03.16"]
[Round "12.4"]
[White "Papp, Gabor"]
[Black "Swinkels, Robin"]
[Result "1/2-1/2"]
[ECO "C54"]
[WhiteElo "2530"]
[BlackElo "2515"]
[Annotator "TA"]
[PlyCount "111"]
[EventDate "2023.10.20"]
[EventType "team-tourn"]
[EventCountry "GER"]
[SourceTitle "playchess.com"]
[Source "ChessBase"]
[SourceQuality "1"]
[TimeControl "40/6000+30:3000+30"]

{[%evp 13,111,2,0,7,21,0,0,-16,0,0,37,25,35,27,26,20,46,24,18,0,0,-5,18,20,0,22,16,14,19,12,1,0,0,0,95,75,164,159,157,149,345,132,132,8,8,8,8,8,8,8,8,16,16,16,16,8,16,0,7,7,7,0,0,0,0,0,2,0,0,0,0,0,2,0,0,0,0,0,0,0,0,0,0,0,0,0,0,0,0,0,0,0,0,0,0,0,0,0,0,0]} 1. e4 {[%emt 16:30:20]} e5 {[%emt 0:00:05]} 2. Nf3 {[%emt 0:00:06]} Nc6 {[%emt 0:00:04]} 3. Bc4 {[%emt 0:00:14]} Bc5 {[%emt 0:00:07]} 4. d3 {[%emt 0:00:26]} Nf6 {[%emt 0:00:06]} 5. Bg5 {[%emt 0:01:03][%cal Bc1g5,Bg5h4,Bh4g3][%mdl 32]} h6 {[%emt 0:02:29]} 6. Bh4 {[%emt 0:00:15]} d6 {[%emt 0:05:05]} 7. c3 {[%emt 0:01:50]} a6 {[%emt 0:00:36]} 8. a4 {[%emt 0:00:46]} Ba7 {[%emt 0:00:53]} 9. Nbd2 {[%emt 0:00:48]} Qe7 {[%emt 0:16:31]} 10. O-O {[%emt 0:00:34]} g5 {[%emt 0:01:01]} 11. Bg3 {[%emt 0:00:07]} Bg4 {[%emt 0:03:32]} 12. h3 {[%emt 0:02:23]} Bd7 {[%emt 0:07:19]} 13. b4 {[%emt 0:00:43][%cal Od3d4]} Nh5 {[%emt 0:09:30]} 14. Kh2 {[%emt 0:06:48][%cal Of3e5]} Nf4 {[%emt 0:19:09]} 15. b5 {[%emt 0:05:37]} Na5 {[%emt 0:03:05]} 16. bxa6 {[%emt 0:00:08]} (16. Bxf4 {simplifies} Nxc4 17. Nxc4 exf4 18. Rb1) 16... bxa6 {[%emt 0:00:25]} 17. d4 {[%emt 0:00:54]} O-O {[%emt 0:15:30]} (17... Ng6 {simplifies} 18. Bd5 c6 19. Ba2 h5) 18. Bxa6 {[%emt 0:02:58]} Bxd4 {[%emt 0:00:45]} 19. cxd4 {[%emt 0:03:24]} Rxa6 {[%emt 0:00:04]} 20. Rc1 {[%emt 0:24:25]} c5 {[%emt 0:02:55]} 21. dxe5 {[%emt 0:06:31]} dxe5 {[%emt 0:00:28]} 22. Qc2 {[%emt 0:00:28]} Rc8 {[%emt 0:04:00]} 23. Qc3 {[%emt 0:15:32]} Bxa4 {[%emt 0:08:39]} (23... Ne2 24. Qd3 Nxg3 25. Qxa6 Nxf1+ 26. Rxf1) (23... f6 $11) 24. Nxe5 $16 {[%emt 0:04:06] Bxf4 is the strong threat.} (24. Qxe5 Qxe5 25. Nxe5 Bb5 $16) 24... Ne2 {[%emt 0:02:15]} (24... Bb5 $16) 25. Qd3 $1 $18 {[%emt 0:00:14][%csl LRa6,LRe2]} Nxg3 {[%emt 0:00:07]} 26. fxg3 {[%emt 0:13:02]} ({And not} 26. Qxa6 Nxf1+ 27. Kg1 Rd8 28. Nxf1 Nb3 $11) 26... c4 $2 {[%emt 0:01:04] [#]} (26... Re6 $16 {might work better.}) 27. Ndxc4 $2 {[%emt 0:03:22]} (27. Qc3 $1 $18 {is the precise move to win.} Be8 28. Ng4 (28. Ndxc4 $2 {too greedy.} Nxc4 29. Ng4 Rac6 $19)) 27... Bb5 $16 {[%emt 0:05:17]} 28. Nxa5 {[%emt 0:15:54] Excellent horsemanship.} (28. Ne3 $16 Rxc1 (28... Bxd3 $2 29. Rxc8+ Kh7 30. Rxf7+ $18) 29. Qxb5 Rxf1 30. Qxa6 Qxe5 31. Nxf1) 28... Rxc1 $11 {[%emt 0:02:55] The position is equal.} 29. Qxb5 {[%emt 0:00:03]} Rxa5 $1 {[%emt 0:00:25]} 30. Qb8+ {[%emt 0:00:46]} Qf8 {[%emt 0:00:04]} 31. Qxf8+ {[%emt 0:01:02]} (31. Rxc1 $2 {perishes.} Qxb8 32. Ng4 Qb6 $19) 31... Kxf8 {[%emt 0:00:02][%mdl 4096] Endgame. KRR-KRN} 32. Nd7+ {[%emt 0:00:41]} Ke7 {[%emt 0:00:03]} 33. Rxc1 {[%emt 0:00:04]} Kxd7 {[%emt 0:00:02] KR-KR} 34. Rb1 {[%emt 0:00:13]} Ra6 {[%emt 0:02:30]} 35. h4 {[%emt 0:00:40]} Re6 {[%emt 0:00:22]} 36. Rb7+ {[%emt 0:00:34]} Ke8 {[%emt 0:00:03]} 37. Rb4 {[%emt 0:00:46]} Ke7 {[%emt 0:01:02]} 38. Kh3 {[%emt 0:00:03]} Kf6 {[%emt 0:00:06]} 39. Kg4 {[%emt 0:00:21]} Kg6 {[%emt 0:00:06]} 40. Kf3 {[%emt 0:00:49]} Rf6+ {[%emt 0:01:10]} 41. Ke3 {[%emt 0:00:11]} Rf1 {[%emt 0:01:27]} 42. Rb6+ {[%emt 0:00:59]} Kg7 {[%emt 0:02:56]} 43. Ke2 {[%emt 0:00:57]} Rh1 {[%emt 0:01:38]} 44. hxg5 {[%emt 0:00:06]} hxg5 {[%emt 0:00:05]} 45. Kf3 {[%emt 0:00:01]} Re1 {[%emt 0:00:41]} 46. Ra6 {[%emt 0:01:40]} f6 {[%emt 0:00:53]} 47. Ra7+ {[%emt 0:00:07]} Kg6 {[%emt 0:00:04]} 48. Re7 {[%emt 0:00:02]} Rf1+ {[%emt 0:02:02]} 49. Ke2 {[%emt 0:00:16]} Rg1 {[%emt 0:00:08]} 50. Kf2 {[%emt 0:00:14]} Ra1 {[%emt 0:00:02]} 51. Re6 {[%emt 0:00:14]} Ra2+ {[%emt 0:00:50]} 52. Kf3 {[%emt 0:00:06]} Ra3+ {[%emt 0:00:07]} 53. Kg4 {[%emt 0:00:26]} Ra4 {[%emt 0:01:54]} 54. Kf3 $1 {[%emt 0:00:26]} Ra3+ {[%emt 0:00:13]} 55. Kg4 {[%emt 0:00:02]} Ra4 {[%emt 0:00:04]} 56. Kf3 {[%emt 0:00:03] Weighted Error Value: White=0.15 (very precise) /Black=0.13 (very precise) .  Loses game:     	---       	Black=1      Missed win:     	White=1     	---        Mistake:       	White=1     	Black=2      Inaccurate:     	White=1     	Black=2      OK:         	White=14    	Black=18     Best:        	White=2     	Black=12     Strong:       	White=1     	Black=1} 1/2-1/2